Cogmind - Beta 15 @@@ ROGUE MODE // 2025.05.26 @ 23:39:02 Player: Moddy Result: Smashed by cave-in Performance ------------- Evolutions (2) 1000 Regions Visited (3) 600 Robots Destroyed (46) 230 Value Destroyed (1276) 1276 Prototype IDs (1) 20 Alien Tech Used (0) 0 Bonus (0) 0 TOTAL SCORE: 3126 Bonus ------- None Cogmind --------- Core Integrity 0/550 Matter 211/300 Energy 240/240 System Corruption 9% Temperature Cool (0) Movement Walking (120) Location -8/Materials Parts ------- > --- POWER (2) -------- Nuclear Core > --- PROPULSION (4) --- Aluminum Leg Improved Aluminum Leg Carbon-fiber Leg Carbon-fiber Leg > --- UTILITY (2) ------ Improved Targeting Computer > --- WEAPON (3) ------- Cooled Pulse Rifle Gauss Rifle > --- INVENTORY (5) ---- Improved Heat Sink Improved Targeting Computer Particle Charger Improved Medium Armor Plating Cooled Pulse Rifle Peak State ------------ > --- POWER ------------ Deuterium Engine Nuclear Core > --- PROPULSION ------- Aluminum Leg Improved Aluminum Leg Carbon-fiber Leg Carbon-fiber Leg > --- UTILITY ---------- Small Storage Unit Improved Targeting Computer > --- WEAPON ----------- Cooled Pulse Rifle Cooled Pulse Rifle Gauss Rifle > --- INVENTORY -------- Improved Ion Engine Improved Heat Sink Improved Targeting Computer Particle Charger Core Shielding Hardened Medium Armor Plating Improved Medium Armor Plating Cooled Pulse Rifle [Rating: 34] Favorites ----------- Power Light Ion Engine Engine Light Ion Engine Power Core Light Nuclear Core Propulsion Aluminum Leg Treads Light Treads Leg Aluminum Leg Utility Small Storage Unit Storage Small Storage Unit Processor Improved Targeting Computer Weapon Medium Laser Energy Gun Medium Laser Ballistic Gun Gauss Rifle Build | -11 -10 -9 -8 ------- Run | Yrd Mat Mat Mat Slots Evolved 4 | . . 2 2 Power 1 | . . 1 . Propulsion 2 | . . . 2 Utility . | . . . . Weapon 1 | . . 1 . Parts Attached 39 | 7 5 1 26 Power 11 | 1 1 1 8 Engine 8 | 1 1 1 5 Core 3 | . . . 3 Reactor . | . . . . Propulsion 16 | 2 3 . 11 Treads 3 | 2 . . 1 Leg 13 | . 3 . 10 Wheel . | . . . . Hover . | . . . . Flight . | . . . . Utility 3 | 1 1 . 1 Device . | . . . . Storage 2 | 1 1 . . Processor 1 | . . . 1 Hackware . | . . . . Protection . | . . . . Artifact . | . . . . Weapon 9 | 3 . . 6 Energy Gun 6 | 2 . . 4 Energy Cannon . | . . . . Ballistic Gun 3 | 1 . . 2 Ballistic Cannon . | . . . . Launcher . | . . . . Special Weapon . | . . . . Impact Weapon . | . . . . Slashing Weapon . | . . . . Piercing Weapon . | . . . . Special Melee Weapon . | . . . . Unidentified Prototypes 1 | . . . 1 Parts Lost 20 | . 2 1 17 Power 7 | . 1 . 6 Propulsion 7 | . 1 . 6 Utility 2 | . . 1 1 Weapon 4 | . . . 4 Highest Loss Streak 6 | . 1 1 6 To Critical Strikes 2 | . . . 2 Average Backups 6 | 3 6 7 7 Power . | . . . . Propulsion 1 | 1 2 3 . Utility 4 | . 2 4 5 Weapon . | . . . . Tool/Special . | . . . . Unused Backups 14 | . . . 14 Power 1 | . . . 1 Propulsion . | . . . . Utility 11 | . . . 11 Weapon 2 | . . . 2 Tool/Special . | . . . . Average Slot Usage (%) 90 | . 98 75 89 Engine 12 | . 13 17 10 Core 3 | . . . 5 Treads 5 | . 16 . 1 Leg 24 | . 11 22 31 Storage 14 | . 27 13 8 Processor 5 | . . . 8 Energy Gun 14 | . 21 11 11 Ballistic Gun 9 | . 6 11 10 Peak Build Rating 34 | 6 8 8 34 Average Rating 17 | 4 7 7 24 On Entrance 5 | . 6 8 8 Naked Turns . | . . . . Heaviest Build 33 | 12 17 17 33 Greatest Support 53 | 40 40 20 53 Greatest Overweight (x) 1 | . 1 . 1 Average Overweight (x) . | . . . . Largest Inventory Capacity 8 | 8 8 8 8 Average Capacity 7 | 6 8 8 7 Most Carried 8 | 5 8 8 8 Average Carried 6 | 3 6 7 7 Final Capacity 8 | 8 8 8 5 Final Carried 7 | 4 7 7 5 Class Distribution -------------------- 54% | Mutant 39% | Scavenger-Gunner 4% | Scavenger-Mutant Dominant Class ---------------- Mutant | -10/Materials Mutant | -9/Materials Scavenger-Gunner | -8/Materials Resources | -11 -10 -9 -8 ----------- Run | Yrd Mat Mat Mat Matter Collected 1017 | 264 93 56 604 Remotely . | . . . . Salvage Created 1759 | . 275 244 1240 Parts 84 | . 10 9 65 Haulers Intercepted . | . . . . Recyclers Shooed 7 | . 1 2 4 Parts Field Recycled . | . . . . Retrieved Matter . | . . . . Parts Self-Destructed . | . . . . Prevented . | . . . . Kills | -11 -10 -9 -8 ------- Run | Yrd Mat Mat Mat Combat Hostiles Destroyed 35 | . 6 4 25 Guns 34 | . 5 4 25 Classes Destroyed 9 | . 2 1 6 Worker 1 | . . . 1 Builder 1 | . . . 1 Recycler 6 | . . 1 5 Watcher 3 | . 2 . 1 Swarmer 10 | . . . 10 Grunt 17 | . 6 4 7 Duelist 1 | . . . 1 Sentry 5 | . . . 5 Hunter 2 | . . . 2 Best Kill Streak 9 | . 2 4 9 Combat Bots Only 8 | . 2 3 8 Max Kills in Single Turn 2 | . 1 1 2 Gunslinging 1 | . . . 1 Exploded . | . . . . Melee . | . . . . Uniques/NPCs Destroyed . | . . . . Combat | -11 -10 -9 -8 -------- Run | Yrd Mat Mat Mat Hostile Shots Fired 268 | . 47 26 195 Missed 70 | . 11 7 52 Hits 198 | . 36 19 143 Melee 2 | . . . 2 Projectile 196 | . 36 19 141 Critical Strikes 6 | . 2 . 4 Damage Taken 3020 | . 484 206 2330 Core 677 | . 56 55 566 Absorbed by Shields . | . . . . Core Remaining (%) 87 | 100 77 86 . Volleys Fired 168 | . 41 21 106 Largest 3 | . 2 2 3 Hottest 110 | . 100 70 110 Shots Fired 308 | . 65 42 201 Gun 308 | . 65 42 201 Cannon . | . . . . Launcher . | . . . . Special . | . . . . Kinetic 159 | . 12 21 126 Thermal 149 | . 53 21 75 Explosive . | . . . . Electromagnetic . | . . . . Robot Hit Streak 18 | . 10 12 18 Robot Miss Streak 8 | . 3 4 8 Penetration Max 1 | . . . 1 Secondary Targets 6 | . . . 6 Max Gunslinging Chain 1 | . . . 1 Shots Hit Robots 207 | . 43 32 132 Core Hits 80 | . 14 12 54 Critical Kills 2 | . . . 2 Critical Parts Destroyed 2 | . . . 2 Critical Strikes 9 | . 1 2 6 Burn 5 | . 1 2 2 Destroy 4 | . . . 4 Melee Attacks . | . . . . Impact . | . . . . Slashing . | . . . . Piercing . | . . . . Sneak Attacks . | . . . . Combat Hostiles . | . . . . Follow-up Attacks . | . . . . Damage Inflicted 3538 | . 553 408 2577 Guns 3469 | . 536 408 2525 Cannons . | . . . . Explosions . | . . . . Melee . | . . . . Ramming 69 | . 17 . 52 Kinetic 1980 | . 86 197 1697 Thermal 1489 | . 450 211 828 Explosive . | . . . . Electromagnetic . | . . . . Impact . | . . . . Slashing . | . . . . Piercing . | . . . . Highest Corruption 7 | . 1 . 7 Average Corruption 1 | . 1 . 7 Corruption Purged . | . . . . Corruption Blocked . | . . . . Overload Shots . | . . . . Overflow Damage . | . . . . Projectiles . | . . . . Explosions . | . . . . Melee . | . . . . Knockbacks 2 | . . . 2 Impact 2 | . . . 2 Kinetic . | . . . . Secondary . | . . . . Self-Inflicted Damage . | . . . . Shots . | . . . . Rammed 2 | . 2 . . Targets Rammed 8 | . 3 . 5 Kicked 6 | . 1 . 5 Crushed . | . . . . Highest Temperature 525 | . 525 78 282 Average Temperature 129 | . 250 24 70 Received Heat Transfer 954 | . 321 102 531 Effects 17 | . 14 . 3 Shutdowns 3 | . 3 . . Energy Bleed 2 | . 2 . . Interference 7 | . 4 . 3 Short Circuit 1 | . 1 . . Damage (major) 4 | . 4 . . Siege Activations . | . . . . Martial Activations . | . . . . Shielding Activations . | . . . . Robots Disrupted . | . . . . Combat Hostiles . | . . . . Robots Corrupted . | . . . . Combat Hostiles . | . . . . Parts Fried . | . . . . Impact Corruptions . | . . . . Robots Melted 1 | . 1 . . Combat Hostiles 1 | . 1 . . Parts Melted 7 | . 3 1 3 Heat Transferred 4107 | . 1406 777 1924 Parts Sabotaged . | . . . . Parts Stolen . | . . . . Parts Stripped . | . . . . Power Chain Reactions . | . . . . Alert | -11 -10 -9 -8 ------- Run | Yrd Mat Mat Mat Maximum Alert Level 1 | . . . 1 Low Security (%) 80 | 100 100 100 66 Level 1 19 | . . . 33 Level 2 . | . . . . Level 3 . | . . . . Level 4 . | . . . . Level 5 . | . . . . High Security . | . . . . Max Security . | . . . . Peak Influence 320 | . 70 79 320 Initial 16 | . . 16 11 Average 84 | . 20 39 129 Influence Increases 1022 | . 203 143 676 Destroy 0b10 Robot/C 700 | . 120 80 500 Destroy 0b10 Robot/NC 55 | . 10 5 40 Destroy Leader 196 | . 44 20 132 Trap Triggered on 0b10 10 | . 10 . . Successful Hack 12 | . 4 8 . Destroy Structure 4 | . . . 4 Lose Combat Pursuer 45 | . 15 30 . Influence Decreases 876 | . 164 153 559 Entered New Map 41 | . . 23 18 Time Decay 674 | . 144 120 410 Lost Part 161 | . 20 10 131 Squads Dispatched 10 | . 3 3 4 Investigation 3 | . . 1 2 Extermination . | . . . . Reinforcement 7 | . 3 2 2 Assault . | . . . . Garrison . | . . . . Intercept . | . . . . Searches Triggered . | . . . . Construction Impeded 1 | . . . 1 Haulers Reinforced . | . . . . Active Scanning Responses . | . . . . Cargo Convoy Interrupts . | . . . . Stealth | -11 -10 -9 -8 --------- Run | Yrd Mat Mat Mat Distress Signals 1 | . 1 . . Communications Jammed . | . . . . Distress Signals . | . . . . Times Spotted 51 | . 13 8 30 Peak Tracking Total 8 | . 3 4 8 Tactical Retreats 2 | . 1 1 . Traps | -11 -10 -9 -8 ------- Run | Yrd Mat Mat Mat Traps Triggered 1 | . 1 . . Indirectly . | . . . . Trap Hack Attempts . | . . . . Triggered . | . . . . Disarmed . | . . . . Reprogrammed 4 | . 4 . . Reused 1 | . 1 . . Traps Extracted . | . . . . Installed . | . . . . Triggered 1 | . 1 . . Machines | -11 -10 -9 -8 ---------- Run | Yrd Mat Mat Mat Machines Disabled . | . . . . Max in Single Turn . | . . . . Machines Repaired . | . . . . Machines Dismantled . | . . . . Machines Sabotaged . | . . . . Overloaded Fab Kills . | . . . . Hacking | -11 -10 -9 -8 --------- Run | Yrd Mat Mat Mat Machines Accessed 7 | . 2 2 3 Terminals 6 | . 2 2 2 Fabricators . | . . . . Repair Stations 1 | . . . 1 Recycling Units . | . . . . Scanalyzers . | . . . . Garrison Access . | . . . . Total Hacks 23 | . 6 10 7 Successful 10 | . 2 5 3 Failed 13 | . 4 5 4 Catastrophic 2 | . 1 1 . Database Lockouts . | . . . . Manual . | . . . . Terminals 22 | . 6 10 6 Fabricators . | . . . . Repair Stations 1 | . . . 1 Recycling Units . | . . . . Scanalyzers . | . . . . Garrison Access . | . . . . Terminal Hacks 10 | . 2 5 3 Emergency Access Points 1 | . . 1 . Terminal Index 1 | . . 1 . Alert Level 2 | . . 2 . Reprogram Traps 1 | . 1 . . Dispatch Records 1 | . 1 . . Maintenance Status 1 | . . 1 . Hauler Manifests 1 | . . . 1 Zone Layout 2 | . . . 2 Fabricator Hacks . | . . . . Repair Station Hacks . | . . . . Recycling Unit Hacks . | . . . . Scanalyzer . | . . . . Garrison Access Hacks . | . . . . Unauthorized Hacks . | . . . . Terminals . | . . . . Fabricators . | . . . . Repair Stations . | . . . . Recycling Units . | . . . . Scanalyzers . | . . . . Garrison Access . | . . . . Data Cores Recovered . | . . . . Used . | . . . . Hacking Detections 7 | . 2 2 3 Full Trace Events 5 | . 2 1 2 Feedback Events . | . . . . Feedback Blocked . | . . . . Robot Schematics Acquired . | . . . . Robots Built . | . . . . Authchips . | . . . . Time . | . . . . Total Robot Build Rating . | . . . . Part Schematics Acquired . | . . . . Parts Built . | . . . . Authchips . | . . . . Time . | . . . . Total Part Build Rating . | . . . . Parts Repaired . | . . . . Time . | . . . . Parts Recycled . | . . . . Recycled Matter . | . . . . Retrieved Matter . | . . . . Retrieved Components . | . . . . Parts Scanalyzed . | . . . . Part Schematics Acquired . | . . . . Parts Damaged . | . . . . Bothacking | -11 -10 -9 -8 ------------ Run | Yrd Mat Mat Mat Used RIF Installer . | . . . . Robots Hacked . | . . . . Non-combat . | . . . . Combat . | . . . . Robot Hacks Applied . | . . . . Relay Couplers Released . | . . . . Fabnet Peak Effective % . | . . . . Robots Rewired . | . . . . Allies Hacked . | . . . . Hacks Repelled . | . . . . Allies | -11 -10 -9 -8 -------- Run | Yrd Mat Mat Mat Total Allies . | . . . . Largest Group . | . . . . Highest-Rated Group . | . . . . Highest-Rated Ally . | . . . . Total Orders . | . . . . Ally Attacks . | . . . . Total Damage . | . . . . Kills . | . . . . Allies Corrupted . | . . . . Allies Melted . | . . . . Intel | -11 -10 -9 -8 ------- Run | Yrd Mat Mat Mat Active Infowar (turns) . | . . . . Robot Analysis Total . | . . . . Derelict Logs Recovered . | . . . . Drone Launches . | . . . . Drone Recoveries . | . . . . Exploration | -11 -10 -9 -8 ------------- Run | Yrd Mat Mat Mat Turns Passed 2048 | 80 551 253 1164 Spaces Moved 1126 | 44 293 155 634 Core 6 | 6 . . . Treads 171 | 38 133 . . Legs 949 | . 160 155 634 Wheels . | . . . . Hover . | . . . . Flight . | . . . . Fastest Speed 50 | 50 120 120 120 Average Speed 127 | 145 140 120 121 Slowest Speed 190 | 160 190 120 190 Overloaded Moves . | . . . . Propulsion Burnouts . | . . . . Robots Hopped . | . . . . Potential Cave-ins 4 | . . . 4 Cave-ins Triggered 2 | . . . 2 Exploration Rate (%) 28 | 4 49 18 42 Regions Visited 3 Branch Regions . Pre-discovered Areas . | . . . . Known Exits Taken . | . . . . Unknown Exits Taken 3 | 1 1 1 . Scrap Searched . | . . . . Spaces Dug 5 | . . . 5 Terrain Destroyed 9 | . . . 9 Melee . | . . . . Projectile 8 | . . . 8 AOE . | . . . . Terrain Rammed . | . . . . Walls Destroyed . | . . . . Machines Disabled . | . . . . Actions | -11 -10 -9 -8 --------- Run | Yrd Mat Mat Mat Total 1474 | 60 366 180 868 Wait 55 | . 15 1 39 Move 1123 | 43 292 154 634 Hop . | . . . . Pick Up 56 | 10 7 2 37 Fast Attach . | . . . . Attach 29 | 6 4 1 18 Detach . | . . . . Swap 15 | 1 3 . 11 Drop 20 | . 1 1 18 Fire 168 | . 41 21 106 Melee . | . . . . Ram . | . . . . Kick 6 | . 1 . 5 Crush 2 | . 2 . . Escape Stasis . | . . . . Rewire . | . . . . Trap . | . . . . Miscellaneous . | . . . . Route ------- -11/Scrapyard -10/Materials -9/Materials -8/Materials History --------- Turn | Location | Event 6 | -11/Scrapyard | Discovered new exit (range 14) 81 | -11/Scrapyard | Entered Materials 307 | -10/Materials | Build established: Mutant 621 | -10/Materials | Discovered new exit (range 10) 632 | -10/Materials | Entered another Materials area 632 | -9/Materials | Evolved 2 slots: Power x1, Weapon x1 870 | -9/Materials | Discovered new exit (range 12) 885 | -9/Materials | Entered another Materials area 885 | -8/Materials | Evolved 2 slots: Propulsion x2 1165 | -8/Materials | Lost 6 parts (1p3n2w) 1272 | -8/Materials | Core integrity fell below 50% 1331 | -8/Materials | Lost 5 parts (2p3n) 1609 | -8/Materials | Destroyed 8 combat bots 1619 | -8/Materials | Build established: Scavenger-Gunner 2049 | -8/Materials | Crushed by falling debris 2050 | -8/Materials | Crushed by falling debris 2050 | -8/Materials | Smashed by cave-in Last Messages --------------- Dropped Hrd. Medium Armor Plating. Acquired Imp. Weapon Shielding. T-07 Excavator is excavating. Slug penetrates Wall. Wall collapses. Slug penetrates Earth. The unstable cave ceiling collapses. Slug penetrates Earth. Slug penetrates Wall. The unstable cave ceiling collapses. Crushed by falling debris. Cld. Pulse Rifle destroyed. System corrupted by crushing effect (+5). Sml. Storage Unit destroyed. System corrupted by crushing effect (+2). Imp. Weapon Shielding crushed. The unstable cave ceiling collapses. Crushed by falling debris. Deuterium Engine destroyed. System corrupted by crushing effect (+2). Map ----- +----------------------------------------------------+ | | | | | | | | | | | | | | | | | | | | | | | | | | | | | ?????????????????????????????????????????????????? | | ????????????????????????#######??????????????????? | | ###########?????????????# #??????????????????? | | ############### #??????????????????? | | " #??????????????????? | | ############### #??????????????????? | | ##?????????????# #??????????????????? | | #??????????????#"#####??????????????????? | | ######## #??????????????###??????????????????????? | | **#?# #??????????????# #??????????????????????? | | * = *# ?????????????#!#??????????????????????? | | # #????????????#@#??????????????????????? | | ## ##????????????###??????????????????????? | | ! / ######?????????????###??????????????????????? | | #???????????????????????????????????????????? | | ##+##### #?????????????????????????????????????? | | #????????????????????????????????? | | ## ##### ! #?????????????????????????????????????? | | ?# #########?????????????????????????????????????? | | ?# ## ! ??????????????????????????????????????? | | ?# ## "" ??????????????????????????????????????? | | ?# #? "T ???????????????????????????????????????? | | # #? "" ???????????????????????????????????????? | | + #?? ??????########??????????????????????????? | | # #?? ??##### "??????????????????????????? | | ## ####+#### # ""S #???????????????????????? | | # "" #???????????????????????? | | ##+#### #### # ##?????????????????????? | | ? ??# #??## ## """ #????????????????????? | | ? ??# #???# ## """ #????????????????????? | | # #?# #???# ##!! """ #????????????######## | | #" ###+##### ##!! ########?????# | | #T # ## #######+##### #?????# ^ ^ T | | #" # """ # ##### ![== #?##### | | # # """ + [* % #?#[[ #??????? | | ?#### """ # ##### !% #?# [[ #??????? | +----------------------------------------------------+ Best States ------------- Heat Dissipation 31 Energy Generation 23 Energy Capacity 430 Matter Stores 300 Matter Capacity 300 Sight Range 16 Terrain Scan Density 10 Evasion (%) 55 Targeting Accuracy 6 Recoil Reduction 2 Item Schematics ----------------- None Robot Schematics ------------------ None Fabricated ------------ Nothing Repaired ---------- Nothing Alien Tech Used ----------------- None Achievements -------------- None Challenges ------------ None Game ------ Seed ArmageddonMasterKatana Manual? 0 Play Time 00:18:40 Cumulative 14.8 hours Start 2025.05.26 @ 23:23:01 End 2025.05.26 @ 23:39:02 Sessions 1 Manual Loads 0 Difficulty Rogue Special Mode None Game No. 32 Rogue 32 Adventurer 0 Explorer 0 Win Type - Total 0 Types 0/0/0/0/0/0/0/0/0/0 Lore% 10 Gallery% 23 Achievement% 18 Wizard Run 0 Options --------- Layout 1 ASCII 0 Keyboard 0 Movement Mouse Keybinds 0 Fullscreen 1 Font 32/Tamsyn Map View 25x20 Zoom Use 90% Tactical HUD 0 Map Filters NONE Filters NONE Steam 1 RUN: 95b4f26b-ae21-4625-b7ef-645a5e92e378